bitfinex/quotes_ETHUSD_20260302
["timestamp","ask_amount","ask_price","bid_price","bid_amount"]
[1772488487330,0.46162402,2047.4,2046.9,0.001]
[1772488487826,0.46162402,2047.4,2047.2,0.001]
[1772488488242,1.70862896,2047.4,2047.2,0.001]
[1772488490423,3.37354158,2047.6,2047.2,0.46157142]
[1772488491747,0.002,2047.6,2047.2,0.46157142]
[1772488492048,1.22295366,2047.6,2047.2,0.46157142]
[1772488494050,0.002,2047.6,2047.2,0.001]
[1772488494226,0.48955389,2047.6,2047.2,0.001]
[1772488494652,0.96668377,2047.6,2047.2,0.001]
[1772488494945,1.70873403,2047.2,2046.9,0.001]
[1772488495147,1.665,2047.1,2046.9,0.001]
[1772488497332,2.88628052,2047.1,2046.9,0.001]
[1772488498830,2.88628052,2047.1,2046.5,4.88739096]
[1772488498831,0.48755389,2047.0,2046.5,0.001]
[1772488499030,0.48755389,2047.0,2046.3,0.001]
[1772488499634,0.48755389,2046.8,2046.3,0.001]
[1772488499944,1.22135912,2046.9,2046.0,0.46157142]
[1772488499945,0.48755389,2046.6,2046.0,0.001]
[1772488500149,0.48755389,2046.6,2046.0,1.22289504]
[1772488500449,0.48755389,2046.6,2046.1,0.46057142]
[1772488500655,1.673,2046.5,2046.1,0.46057142]
[1772488501631,4.88543651,2047.0,2046.3,0.46057142]
[1772488501632,5.3729904,2047.0,2046.3,0.46057142]
[1772488501832,2.89339518,2046.9,2046.3,0.46057142]
[1772488502170,3.38094907,2046.9,2046.3,0.46057142]
[1772488502450,1.672,2046.8,2046.3,0.46057142]
[1772488503033,1.70894907,2046.9,2046.3,0.46057142]
[1772488503237,1.672,2046.8,2046.3,0.46057142]
[1772488504236,2.89343406,2046.8,2046.4,1.68222896]
[1772488504637,2.89343406,2046.8,2046.5,0.46057142]
[1772488504939,1.7089592,2046.9,2046.5,0.46057142]
[1772488505140,1.672,2046.8,2046.5,0.46057142]
[1772488506057,1.22133372,2047.0,2046.5,0.46057142]
[1772488506369,0.002,2047.3,2046.7,0.46057142]
[1772488508969,0.002,2047.3,2046.9,0.46057142]
[1772488509362,0.48955389,2047.3,2046.8,1.2214188]
[1772488509560,0.48955389,2047.3,2046.9,0.46057142]
[1772488511267,0.48955389,2047.3,2047.0,1.22129946]
[1772488511863,4.88581697,2047.6,2047.0,1.22129946]
[1772488511864,1.7105072,2047.6,2047.1,0.46057142]
[1772488512472,0.002,2047.1,2046.8,0.46057142]
[1772488513147,0.002,2047.1,2046.7,1.22147847]
[1772488513348,0.002,2047.1,2046.7,1.68204989]
[1772488515067,0.002,2047.1,2046.7,1.68203409]
[1772488515567,0.002,2047.3,2046.8,0.46057142]
[1772488516785,1.70793105,2047.3,2046.8,0.46057142]
[1772488517185,0.4847976,2047.2,2046.6,1.71324684]
[1772488517377,1.71895845,2047.3,2046.7,0.49173129]
[1772488517577,1.71895845,2047.3,2046.7,1.71317211]
[1772488518466,0.002,2047.3,2046.8,0.45875629]
[1772488519590,1.7188108,2047.6,2046.8,0.45875629]
[1772488520466,0.495825,2047.5,2046.9,1.68011541]
[1772488520669,0.495825,2047.5,2046.8,1.22137292]
[1772488521069,0.495825,2047.5,2046.6,1.22151173]
[1772488521473,0.495825,2047.5,2046.6,1.68026802]
[1772488524291,0.495825,2047.3,2047.0,0.001]
[1772488527583,0.495825,2047.1,2046.5,1.22258802]
[1772488527993,0.495825,2047.1,2046.5,1.68134431]
[1772488529399,0.495825,2047.1,2046.5,0.001]
[1772488529696,0.495825,2046.9,2046.3,0.001]
[1772488530968,0.495825,2046.8,2046.0,0.001]
[1772488531171,0.495825,2046.6,2046.0,0.001]
[1772488531677,0.495825,2046.4,2046.0,0.001]
[1772488533780,1.71754224,2046.3,2046.0,0.001]
[1772488534195,1.671,2046.2,2046.0,0.001]
[1772488534780,2.166825,2046.2,2046.0,0.001]
[1772488535300,0.495825,2046.1,2046.0,0.001]
[1772488535924,0.495825,2046.5,2046.0,0.001]
[1772488536225,0.495825,2046.5,2046.0,0.45975629]
[1772488536592,0.495825,2046.5,2046.2,0.001]
[1772488537195,0.002,2046.4,2046.2,0.001]
[1772488538600,0.497825,2046.4,2046.2,0.001]
[1772488538798,0.497825,2046.4,2046.0,0.001]
[1772488539039,0.497825,2046.4,2046.0,1.22289571]
[1772488539256,0.497825,2046.4,2046.0,0.001]
[1772488539827,0.497825,2046.4,2046.0,1.2228953]
[1772488540245,0.497825,2046.4,2046.0,1.68165248]
[1772488540246,0.002,2046.4,2046.0,1.68165248]
[1772488540412,0.002,2046.4,2046.0,0.001]
[1772488540618,1.71949994,2046.4,2046.0,0.001]
[1772488542656,0.495825,2046.1,2046.0,0.001]
[1772488544025,1.22177695,2046.2,2046.0,0.001]
[1772488546251,1.22365854,2046.4,2046.0,0.001]
[1772488546755,1.71948354,2046.4,2046.0,0.001]
[1772488546957,0.495825,2046.3,2046.0,0.001]
[1772488547751,0.495825,2046.3,2045.8,0.001]
[1772488549259,1.22177695,2046.2,2045.8,0.001]
[1772488549451,1.70812901,2046.2,2045.8,0.001]
[1772488549830,1.71012901,2046.2,2045.8,0.001]
[1772488550128,1.71012901,2046.2,2046.0,0.001]
[1772488550386,0.48635206,2046.1,2046.0,0.001]
[1772488551227,1.22377695,2046.2,2046.0,0.001]
[1772488551863,0.48635206,2046.1,2046.0,0.001]
[1772488552853,2.16835206,2046.1,2046.0,0.001]
[1772488554183,2.16835206,2046.1,2045.8,0.001]
[1772488554486,2.16835206,2046.1,2045.6,0.001]
[1772488554487,0.48635206,2045.9,2045.6,0.001]
[1772488554700,1.22189638,2046.0,2045.2,0.47157912]
[1772488554701,0.48635206,2045.7,2045.2,0.001]
[1772488556291,1.22213531,2045.6,2045.2,0.001]
[1772488556980,1.70848737,2045.6,2045.2,0.001]
[1772488557279,1.70172306,2045.6,2045.2,0.001]
[1772488557651,2.17235206,2045.5,2045.2,0.001]
[1772488558071,1.22212269,2045.7,2045.4,0.47157912]
[1772488558243,2.90912269,2045.7,2045.4,0.001]
[1772488559051,3.39547475,2045.7,2045.4,0.001]
[1772488559451,0.48635206,2045.6,2045.4,0.001]
[1772488561085,0.48635206,2045.4,2045.2,0.001]
[1772488561255,2.18235206,2045.3,2045.2,0.001]
[1772488562059,2.18235206,2045.3,2044.9,0.001]
[1772488562274,2.18235206,2045.3,2044.7,0.001]
[1772488562275,0.48635206,2045.2,2044.7,0.001]
[1772488562888,0.48635206,2045.2,2044.1,0.47057912]
[1772488562889,0.48635206,2045.1,2044.1,0.47057912]
[1772488563070,0.48635206,2044.9,2044.1,0.47057912]
[1772488563550,0.48635206,2044.9,2043.7,4.89289142]
[1772488563551,0.48635206,2044.5,2043.7,0.47057912]
[1772488563754,0.48635206,2044.3,2043.7,0.47057912]
[1772488564356,1.007,2044.8,2043.9,0.47057912]
[1772488564678,0.48635206,2044.7,2043.6,0.47057912]
[1772488565178,1.22273305,2044.6,2043.8,0.47057912]
[1772488565348,0.838,2044.6,2043.8,0.47057912]
[1772488565552,1.32435206,2044.6,2043.8,0.47057912]
[1772488567182,1.22279285,2044.5,2043.9,1.22315181]
[1772488567362,1.22279285,2044.5,2043.9,1.69373093]
[1772488567566,1.22279285,2044.5,2044.0,0.47057912]
[1772488568481,1.22231457,2045.3,2044.1,2.67363289]
[1772488568682,0.48635206,2045.1,2044.4,0.47057912]
[1772488569367,1.22249388,2045.0,2044.5,1.22279285]
[1772488569868,1.22249388,2045.0,2044.4,1.69338562]
[1772488572089,5.37611321,2045.1,2044.4,1.69338562]
[1772488572090,0.48635206,2045.6,2044.5,0.47057912]
[1772488572264,0.48635206,2045.6,2044.4,1.2228065]
[1772488572265,0.48635206,2045.4,2044.6,0.47057912]
[1772488573186,0.48635206,2045.4,2044.6,0.47157912]
[1772488573486,0.48835206,2045.1,2044.6,0.001]
[1772488574258,1.22249388,2045.0,2044.6,0.001]
[1772488574685,0.002,2045.1,2044.6,0.47157912]
[1772488575392,1.22445064,2045.1,2044.6,0.47157912]
[1772488575788,1.7108027,2045.1,2044.6,0.47157912]
[1772488576362,1.7108027,2045.1,2044.6,1.22372159]
[1772488576668,1.7108027,2045.1,2044.6,0.001]
[1772488577683,0.49945337,2045.0,2044.6,0.001]
[1772488578489,2.91645064,2045.1,2044.6,0.001]
[1772488578693,3.41590401,2045.1,2044.6,0.001]
[1772488579616,0.49945337,2045.0,2044.6,0.001]
[1772488580609,1.692,2044.9,2044.6,0.001]
[1772488580810,0.49945337,2044.8,2044.6,0.001]
[1772488582081,0.49945337,2044.7,2044.4,0.001]
[1772488582485,1.72218642,2044.6,2044.4,0.001]
[1772488582677,1.72218642,2044.6,2044.1,0.001]
[1772488582869,2.19345337,2044.5,2044.1,0.001]
[1772488585689,2.19345337,2044.5,2044.1,0.48359373]
[1772488585690,2.91681987,2044.5,2044.1,0.48359373]
[1772488586072,2.91681987,2044.5,2044.3,0.001]
[1772488586997,3.41627324,2044.5,2044.3,0.001]
[1772488587198,0.49945337,2044.4,2044.0,0.001]
[1772488587714,1.72234452,2044.4,2044.0,0.001]
[1772488588002,0.49945337,2044.3,2043.8,0.001]
[1772488591705,0.49945337,2044.1,2043.4,1.70604484]
[1772488591909,0.49945337,2043.9,2043.4,1.70604484]
[1772488592791,1.698,2044.0,2043.5,0.48259373]
[1772488592792,1.697,2044.0,2043.5,0.48259373]
[1772488592989,1.697,2044.3,2043.5,0.48259373]
[1772488593188,1.272,2044.3,2043.7,0.48259373]
[1772488595111,1.696,2044.4,2043.9,0.48259373]
[1772488595481,2.19545337,2044.4,2043.8,1.70580539]
[1772488595912,0.49945337,2044.3,2043.8,1.70580539]
[1772488597925,1.22297231,2044.2,2043.8,1.7058034]
[1772488598290,1.22297231,2044.2,2043.3,4.89390635]
[1772488598291,1.72242568,2044.2,2043.6,1.70589679]
[1772488598490,0.49945337,2044.1,2043.5,1.22334842]
[1772488599017,0.49945337,2044.1,2043.8,0.001]
[1772488601246,1.697,2044.0,2043.8,0.001]
[1772488602028,2.92297577,2044.2,2043.8,0.48359373]
[1772488602336,3.42242914,2044.2,2043.8,0.48359373]
[1772488602505,3.42242914,2044.2,2043.8,0.001]
[1772488602705,0.49945337,2044.1,2043.8,0.001]
[1772488603227,1.72251666,2044.1,2043.8,0.001]
[1772488603820,0.49945337,2044.1,2043.8,0.001]
[1772488604821,1.72249565,2044.1,2043.8,0.001]
[1772488604999,1.72249724,2044.1,2043.8,0.001]
[1772488605203,0.49945337,2044.1,2043.8,0.001]
[1772488607946,2.92301863,2044.2,2043.8,0.001]
[1772488608436,2.92301863,2044.2,2043.8,0.46026939]
[1772488610501,2.92301863,2044.2,2043.8,1.68348046]
[1772488611025,0.002,2044.2,2043.9,0.45926939]
[1772488611342,4.89097428,2044.6,2043.9,0.45926939]
[1772488611343,0.002,2044.9,2044.3,0.45926939]
[1772488611508,0.002,2045.1,2044.7,0.45926939]
[1772488612809,0.002,2045.1,2044.7,1.68193775]
[1772488614754,0.49772454,2045.1,2044.5,0.45926939]
[1772488617049,1.72016503,2045.1,2044.6,1.68200244]
[1772488618137,0.49772454,2045.1,2044.6,1.68200244]
[1772488618466,0.002,2045.1,2044.7,0.45926939]
[1772488619054,0.002,2045.1,2044.7,1.68188437]
[1772488620860,0.49572454,2044.9,2044.2,0.45926939]
[1772488621166,0.49572454,2044.9,2044.4,0.45926939]
[1772488621167,1.22261345,2044.8,2044.4,0.45926939]
[1772488621856,1.22259906,2044.9,2044.4,0.45926939]
[1772488623660,1.726,2045.0,2044.6,0.45926939]
[1772488625551,0.002,2045.1,2044.6,0.45926939]
[1772488625861,0.002,2045.1,2044.7,1.22267325]
[1772488627667,0.002,2045.1,2044.7,1.68194264]
[1772488628562,1.22443411,2045.1,2044.7,0.45926939]
[1772488628771,1.22443411,2045.1,2044.7,1.68194082]
[1772488630564,1.22443411,2045.1,2044.7,0.45926939]
[1772488630743,1.72015865,2045.1,2044.7,1.68193563]
[1772488631852,1.72015865,2045.1,2044.7,0.45926939]
[1772488632176,0.49572454,2045.0,2044.5,1.68201959]
[1772488633265,3.45127821,2044.9,2044.4,1.22281384]
[1772488633674,3.45127821,2044.9,2044.4,1.68208323]
[1772488634677,2.22872454,2044.9,2044.5,0.45926939]
[1772488635558,3.45128943,2044.9,2044.6,0.001]
[1772488636067,0.002,2044.8,2044.6,0.001]
[1772488641147,0.4792459,2044.8,2044.6,0.001]
[1772488643288,1.70186991,2044.8,2044.6,0.001]
[1772488643745,0.4792459,2044.8,2044.6,0.001]
[1772488643950,1.70186682,2044.8,2044.6,0.001]
[1772488644662,1.22462092,2044.8,2044.6,0.45387313]
[1772488650682,1.22462092,2044.8,2044.6,0.35664942]
[1772488651265,0.4772459,2044.7,2043.8,0.001]
[1772488651469,0.5,2044.3,2043.8,0.001]
[1772488651654,2.244,2044.2,2043.8,0.001]
[1772488653189,2.244,2044.2,2043.5,0.001]
[1772488653190,0.71777246,2044.0,2043.5,0.001]
[1772488653404,0.5,2043.9,2043.5,0.001]
[1772488653585,2.243,2043.8,2043.5,0.001]
[1772488655361,3.46622094,2043.8,2043.5,0.001]
[1772488658470,2.243,2043.8,2043.5,0.001]
[1772488658664,1.749,2044.0,2043.5,0.71877246]
[1772488659000,2.249,2044.0,2043.5,0.001]
[1772488660586,2.251,2044.0,2043.7,0.001]
[1772488662690,3.47409603,2044.0,2043.7,0.001]
[1772488662886,0.5,2043.9,2043.7,0.001]
[1772488663895,4.89222409,2044.1,2043.7,0.71877246]
[1772488663896,1.751,2044.1,2043.7,0.71877246]
[1772488664081,1.754,2044.3,2043.7,0.71877246]
[1772488665095,1.754,2044.3,2043.8,1.22321166]
[1772488665768,2.976916,2044.3,2043.8,1.22321166]
[1772488665975,0.5,2044.2,2043.7,1.22422211]
[1772488669564,0.5,2044.2,2043.7,0.001]
[1772488670694,1.72298359,2044.2,2043.7,0.001]
[1772488671070,0.5,2044.2,2043.7,0.001]
[1772488671294,1.72297982,2044.2,2043.7,0.001]
[1772488672397,1.72297357,2044.2,2043.7,0.001]
[1772488673078,1.72297357,2044.2,2043.9,0.001]
[1772488673278,0.002,2044.0,2043.9,0.001]
[1772488675989,0.502,2044.0,2043.9,0.001]
[1772488676200,0.502,2044.0,2043.7,0.001]
[1772488676595,2.2685,2043.9,2043.7,0.001]
[1772488677809,0.4995,2043.8,2043.7,0.001]
[1772488678602,0.4995,2043.8,2043.5,0.001]
[1772488679701,0.4995,2043.8,2043.2,0.002]
[1772488679702,0.4995,2043.5,2043.2,0.002]
[1772488680070,0.4995,2043.6,2043.2,0.002]
[1772488681485,1.72287123,2043.6,2043.2,0.002]
[1772488681802,0.4995,2043.4,2043.2,0.001]
[1772488682199,1.22330165,2043.7,2043.3,0.001]
[1772488682518,1.768,2043.7,2043.3,0.001]
[1772488682721,0.002,2044.0,2043.7,0.001]
[1772488682882,0.001,2044.0,2043.6,0.71777246]
[1772488683202,0.002,2044.2,2043.6,0.71777246]
[1772488683573,0.002,2044.2,2043.7,1.22327151]
[1772488684202,0.502,2044.2,2043.7,1.22327151]
[1772488686011,0.502,2044.2,2043.6,0.71777246]
[1772488686312,0.002,2044.2,2043.6,0.71777246]
[1772488686603,0.002,2044.0,2043.6,0.71777246]
[1772488686778,0.002,2044.2,2043.6,0.71777246]
[1772488688303,0.002,2044.2,2043.7,1.22327151]
[1772488688615,0.002,2044.2,2043.8,0.71777246]
[1772488690295,0.002,2044.2,2043.9,1.22315181]
[1772488690509,0.502,2044.2,2043.9,1.22315181]
[1772488691417,0.002,2044.2,2043.9,1.22315181]
[1772488693032,0.002,2044.2,2043.7,4.89260727]
[1772488698186,0.002,2044.5,2044.1,0.45554837]
[1772488698385,0.46059652,2044.5,2044.1,0.45554837]
[1772488699515,0.46059652,2044.5,2044.2,1.67852068]
[1772488700091,0.45859652,2044.4,2044.1,1.22303214]
[1772488701017,0.45859652,2044.4,2044.0,1.67859406]
[1772488707631,0.45859652,2044.4,2044.1,0.45554837]
[1772488708126,0.002,2044.5,2044.1,0.45554837]
[1772488708528,0.46059652,2044.5,2044.1,0.45554837]
[1772488709030,0.46059652,2044.5,2044.2,1.22297231]
[1772488709707,0.46059652,2044.5,2044.2,1.67852068]
[1772488710621,0.002,2044.4,2044.2,0.45554837]
[1772488711419,0.002,2044.4,2044.1,1.67858051]
[1772488712602,0.46059652,2044.4,2044.1,1.67858051]
[1772488713834,0.45859652,2044.3,2043.9,1.67969543]
[1772488718242,0.45859652,2044.3,2044.0,0.45554837]
[1772488722646,0.45859652,2044.3,2044.2,0.001]
[1772488723114,1.681509,2044.3,2044.2,0.001]
[1772488723662,3.431509,2044.3,2044.2,0.001]
[1772488726950,2.20859652,2044.3,2044.2,0.001]
[1772488728164,3.431509,2044.3,2044.2,0.001]
[1772488728665,2.20859652,2044.3,2044.2,0.001]
[1772488729029,0.48607423,2044.2,2044.0,0.001]
[1772488729230,2.97291648,2044.3,2044.0,0.48442874]
[1772488729734,3.45899071,2044.3,2044.0,0.48442874]
[1772488730759,3.45899071,2044.3,2044.0,0.001]
[1772488730760,2.23907423,2044.2,2044.0,0.001]
[1772488730971,2.23907423,2044.2,2043.7,0.001]
[1772488730972,0.48607423,2044.0,2043.7,0.001]
[1772488731129,0.002,2044.4,2043.8,0.48342874]
[1772488731328,0.002,2044.4,2044.1,0.48342874]
[1772488731744,0.002,2044.4,2043.9,1.70655408]
[1772488731745,0.48807423,2044.4,2043.9,1.70655408]
[1772488731927,0.48807423,2044.4,2044.0,0.48342874]
[1772488735854,1.71096338,2044.4,2044.0,0.48342874]
[1772488736156,1.71096338,2044.4,2044.2,0.001]
[1772488737861,1.786,2044.3,2044.2,0.001]
[1772488738162,0.48607423,2044.2,2043.7,0.48442874]
[1772488738460,0.48607423,2044.0,2043.7,0.001]
[1772488738634,2.27307423,2043.9,2043.7,0.001]
[1772488739356,0.48607423,2043.8,2043.7,0.001]
[1772488739660,1.787,2043.9,2043.7,0.48442874]
[1772488739840,1.787,2043.9,2043.7,1.70769895]
[1772488740037,2.27307423,2043.9,2043.7,0.001]
[1772488740238,0.48607423,2043.8,2043.7,0.001]
[1772488740569,1.79,2044.1,2043.8,0.48342874]
[1772488741440,2.27607423,2044.1,2043.8,0.48342874]
[1772488741637,1.79,2044.1,2043.8,0.48342874]
[1772488741868,1.804,2044.3,2043.8,0.48342874]
[1772488742070,3.51299896,2044.3,2043.9,1.70658055]
[1772488742650,3.51299896,2044.3,2043.9,0.48342874]
[1772488742852,0.48607423,2044.2,2043.9,0.48342874]
[1772488743250,0.48607423,2044.2,2043.8,0.48342874]
[1772488744974,1.70906358,2044.2,2043.8,1.70662637]
[1772488745450,1.70906358,2044.2,2043.9,0.48342874]
[1772488747279,0.48807423,2044.4,2044.0,0.48342874]
[1772488747483,3.02787399,2044.4,2044.0,0.48342874]
[1772488747680,3.51394822,2044.4,2044.0,0.48342874]
[1772488748181,3.51394822,2044.4,2044.0,0.48442874]
[1772488748479,0.48807423,2044.1,2044.0,0.001]
[1772488748681,0.48807423,2044.1,2043.8,0.001]
[1772488749262,1.71112807,2044.1,2043.8,0.48442874]
[1772488750691,0.48607423,2044.0,2043.8,0.001]
[1772488751377,1.22315181,2043.9,2043.8,0.001]
[1772488751573,0.48607423,2043.9,2043.8,0.001]
[1772488751784,1.817,2044.0,2043.8,0.001]
[1772488751978,2.30307423,2044.0,2043.8,0.001]
[1772488752288,1.817,2044.0,2043.8,0.001]
[1772488754062,1.817,2044.0,2043.8,0.48442874]
[1772488755685,1.817,2044.0,2043.8,0.001]
[1772488756063,2.30307423,2044.0,2043.8,0.001]
[1772488756992,0.002,2044.1,2043.8,0.001]
[1772488757189,1.816,2044.1,2043.8,0.47120913]
[1772488757770,2.30431188,2044.1,2043.8,0.47120913]
[1772488758093,0.48831188,2044.0,2043.8,0.001]
[1772488761894,3.03903288,2044.1,2043.8,0.001]
[1772488761895,1.816,2044.1,2043.8,0.001]
[1772488762064,1.816,2044.1,2043.8,0.46271373]
[1772488762270,2.30431188,2044.1,2043.8,0.46271373]
[1772488762462,2.30431188,2044.1,2043.8,1.68589236]
[1772488762661,1.816,2044.1,2043.9,0.46171373]
[1772488762885,0.002,2044.1,2043.9,0.46171373]
[1772488764871,0.002,2044.1,2043.9,1.6848225]
[1772488765675,0.49031188,2044.3,2044.0,0.46171373]
[1772488765873,0.002,2044.3,2044.0,0.46171373]
[1772488767299,0.49031188,2044.3,2044.1,1.22303214]
[1772488768975,0.002,2044.3,2044.1,1.68474587]
[1772488769599,0.002,2044.3,2044.1,0.46171373]
[1772488769798,0.002,2044.3,2044.1,1.68473829]
[1772488770302,0.002,2044.3,2044.1,0.46171373]
[1772488771494,0.002,2044.3,2044.1,1.68474285]
[1772488772304,0.49031188,2044.3,2044.1,1.22302912]
[1772488775103,0.002,2044.3,2044.1,1.22302912]
[1772488775625,0.002,2044.3,2044.0,1.68576007]
[1772488777403,0.002,2044.3,2044.1,0.46171373]
[1772488779276,0.002,2044.3,2044.0,0.001]
[1772488779481,0.002,2044.3,2044.0,0.46271373]
[1772488781793,0.49031188,2044.3,2044.1,1.22303214]
[1772488782884,0.49031188,2044.3,2044.0,0.001]
[1772488784008,0.48831188,2044.1,2043.8,0.001]
[1772488785912,0.49031188,2044.1,2043.8,0.001]
[1772488786109,1.71334678,2044.1,2044.0,0.001]
[1772488786613,0.49031188,2044.1,2044.0,0.001]
[1772488786814,0.002,2044.1,2044.0,0.001]
[1772488788617,0.46570724,2044.0,2043.8,0.001]
[1772488789423,0.46570724,2044.0,2043.5,0.001]
[1772488791299,0.46570724,2043.8,2043.5,0.001]
[1772488791507,2.24170724,2043.8,2043.5,0.001]
[1772488791688,1.776,2043.8,2043.5,0.49713828]
[1772488792218,2.24170724,2043.8,2043.5,0.49713828]
[1772488792414,2.24170724,2043.8,2043.1,1.89551951]
[1772488792415,0.46570724,2043.6,2043.1,1.89551951]
[1772488792987,0.46570724,2043.6,2043.2,0.49613828]
[1772488793188,0.46570724,2043.9,2043.2,0.49613828]
[1772488793386,1.22313624,2044.0,2043.4,0.49613828]
[1772488793588,2.24070724,2043.8,2043.4,0.49613828]
[1772488795525,0.46570724,2043.9,2043.3,4.89395142]
[1772488795893,0.46570724,2043.9,2043.4,0.49613828]
[1772488797114,1.22313624,2044.0,2043.4,0.49613828]
[1772488797331,1.22313624,2044.0,2043.6,0.49613828]
[1772488797502,1.68884348,2044.0,2043.6,0.49613828]
[1772488798100,0.46570724,2043.9,2043.6,0.49613828]
[1772488798320,0.46570724,2043.9,2043.6,0.49713828]
[1772488798522,0.46770724,2043.9,2043.6,0.49713828]
[1772488799009,0.002,2043.9,2043.6,0.49713828]
[1772488799514,0.002,2044.1,2043.8,0.49613828]
[1772488800623,0.46570724,2044.0,2043.6,0.001]
[1772488801215,0.41570724,2044.0,2043.6,0.001]
[1772488801420,1.68885905,2043.9,2043.6,0.001]
[1772488801606,0.46570724,2043.8,2043.6,0.001]
[1772488802212,1.778,2044.1,2043.7,0.49613828]
[1772488802412,1.778,2044.3,2043.8,0.49613828]
[1772488803421,1.778,2044.3,2044.0,0.49613828]
[1772488805123,0.002,2044.4,2044.0,0.49613828]
[1772488805498,0.002,2044.4,2044.2,0.49613828]
[1772488808199,0.002,2044.7,2044.3,0.49613828]
[1772488810415,0.002,2044.7,2044.4,1.71899095]
[1772488810593,0.002,2044.5,2044.4,1.22285267]
[1772488810798,0.002,2044.7,2044.5,0.49613828]
[1772488812932,0.002,2045.0,2044.6,0.49613828]
[1772488813108,0.002,2045.0,2044.8,0.49613828]
[1772488813319,0.002,2045.0,2044.2,0.49613828]
[1772488813320,0.3815238,2044.8,2044.2,0.49613828]
[1772488814531,0.3815238,2044.8,2044.3,0.49613828]
[1772488815525,1.773,2044.9,2044.5,0.49613828]
[1772488817409,2.99557546,2044.9,2044.5,0.49613828]
[1772488817633,3.37709926,2044.9,2044.5,1.68487414]
[1772488818331,0.3815238,2044.8,2044.2,0.46208264]
[1772488818506,0.3815238,2044.8,2044.2,1.68505003]
[1772488818829,0.3815238,2044.8,2044.2,0.46208264]
[1772488819614,0.3815238,2044.8,2044.2,1.68505441]
[1772488819818,0.3815238,2044.6,2044.2,1.68505441]
[1772488820020,0.3815238,2044.8,2044.3,0.46208264]
[1772488820329,0.3815238,2044.9,2044.3,0.46208264]
[1772488821736,2.99654213,2045.0,2044.3,0.46208264]
[1772488821938,0.3815238,2044.8,2044.3,1.22286677]
[1772488822229,0.3815238,2044.8,2044.3,1.68494941]
[1772488822828,0.3815238,2044.8,2044.5,0.001]
[1772488823334,0.002,2044.7,2044.5,0.001]
[1772488832120,0.002,2044.9,2044.7,0.46208264]
[1772488833421,0.002,2044.9,2044.8,0.46208264]
[1772488833616,0.002,2045.1,2044.9,0.46208264]
[1772488835747,0.3855238,2045.1,2044.7,0.46308264]
[1772488836054,0.3855238,2045.1,2044.7,0.001]
[1772488836055,0.3835238,2044.9,2044.7,0.001]
[1772488838747,0.3855238,2044.9,2044.7,0.001]
[1772488839349,1.60808711,2044.9,2044.7,0.001]
[1772488839548,0.3855238,2044.9,2044.7,0.001]
[1772488841252,0.3855238,2044.9,2044.3,0.001]
[1772488841253,0.3825238,2044.7,2044.3,0.001]
[1772488841433,0.86105044,2044.6,2044.3,0.001]
[1772488842234,2.08383343,2044.6,2044.3,0.001]
[1772488844232,0.3825238,2044.6,2044.4,1.22285267]
[1772488845123,0.3825238,2044.7,2044.4,1.22285267]
[1772488845445,0.3825238,2044.7,2044.4,0.46208264]
[1772488848163,2.25052664,2044.8,2044.6,0.001]
[1772488848355,0.002,2044.8,2044.6,0.001]
[1772488848655,0.002,2044.8,2044.6,0.47339687]
[1772488851676,0.002,2044.8,2044.6,1.22371457]
[1772488854132,0.002,2044.8,2044.6,1.69611144]
[1772488854847,0.002,2045.0,2044.7,0.47239687]
[1772488856157,0.002,2045.0,2044.8,1.69501032]
[1772488859461,0.002,2045.0,2044.8,1.22261345]
[1772488859762,0.002,2045.0,2044.9,0.47239687]
[1772488860161,0.002,2045.0,2044.8,1.22261345]
[1772488860461,0.002,2045.1,2044.8,0.47239687]
[1772488861865,0.002,2045.0,2044.8,0.47239687]
[1772488862084,0.002,2045.2,2045.0,0.47239687]
[1772488862281,0.7517898,2045.9,2045.3,0.47239687]
[1772488862445,0.45911035,2046.1,2045.6,0.95092351]
[1772488862646,2.59481614,2046.2,2045.6,0.95092351]
[1772488862647,0.45911035,2046.0,2045.6,0.95092351]
[1772488863243,0.45911035,2046.0,2045.6,0.47239687]
[1772488864461,1.22187529,2046.1,2045.7,0.47239687]
[1772488868882,1.22187529,2046.1,2045.7,1.69446767]
[1772488869179,1.22187529,2046.1,2045.8,0.47239687]
[1772488869473,1.68098564,2046.1,2045.6,0.47239687]
[1772488870554,1.68098564,2046.1,2045.5,1.22215164]
[1772488870555,0.002,2046.2,2046.1,0.47239687]
[1772488870759,0.002,2046.4,2046.1,0.47239687]
[1772488870972,0.002,2046.4,2046.3,0.47239687]
[1772488871177,0.002,2046.4,2046.1,1.69418632]
[1772488871382,0.002,2046.4,2046.2,0.47239687]
[1772488871781,0.002,2046.4,2046.3,0.47239687]
[1772488871998,0.002,2046.7,2046.3,0.47239687]
[1772488873066,0.002,2046.7,2046.5,0.47239687]
[1772488875682,0.002,2046.7,2046.5,1.69396741]
[1772488876190,0.002,2046.7,2046.6,0.47239687]
[1772488878202,1.68041864,2047.0,2046.6,0.47239687]
[1772488879187,0.47204494,2046.9,2046.6,0.47239687]
[1772488880681,1.69341093,2046.9,2046.6,0.47239687]
[1772488880886,1.22136599,2046.9,2046.6,0.47239687]
[1772488882309,6.65292237,2047.2,2046.6,0.47239687]
[1772488882310,6.07279977,2047.3,2046.6,0.47239687]
[1772488882514,0.47204494,2047.1,2046.4,0.4599443]
[1772488882683,0.47204494,2047.0,2046.4,0.4599443]
[1772488887104,0.47204494,2046.4,2045.6,5.34831569]
[1772488887298,0.47204494,2046.4,2045.7,0.4599443]
[1772488887615,0.47204494,2046.4,2045.8,0.4599443]
[1772488888118,0.47204494,2046.4,2046.1,0.001]
[1772488888806,0.47204494,2046.2,2046.1,0.001]
[1772488889004,0.47204494,2046.2,2045.7,0.4599443]
[1772488889199,1.6938816,2046.1,2045.7,0.4599443]
[1772488890895,4.88734665,2046.2,2045.8,0.4599443]
[1772488890896,1.22182585,2046.2,2045.8,0.4599443]
[1772488891095,1.69387079,2046.2,2045.8,0.4599443]